Cogmind - Beta 16 @@@ ROGUE MODE // 2026.01.21 @ 21:41:58 Player: YoKa Result: Destroyed self with Grenade Launcher Performance ------------- Evolutions (0) 0 Regions Visited (2) 400 Robots Destroyed (28) 140 Value Destroyed (464) 464 Prototype IDs (0) 0 Alien Tech Used (0) 0 Bonus (0) 0 TOTAL SCORE: 1004 Bonus ------- None Cogmind --------- Core Integrity 0/250 Matter 209/300 Energy 249/250 System Corruption 3% Temperature Cool (0) Movement Treading (160) Location -10/Mines Parts ------- > --- POWER (1) -------- Ion Engine > --- PROPULSION (2) --- Improved Treads Improved Treads > --- UTILITY (2) ------ Small Storage Unit Hacking Suite > --- WEAPON (2) ------- Assault Rifle Grenade Launcher > --- INVENTORY (8) ---- Ion Engine Improved Treads Improved Treads Combat Airjet Utility Shielding Assault Rifle Mini Grenade Launcher Datajack Peak State ------------ > --- POWER ------------ Ion Engine > --- PROPULSION ------- Improved Treads Improved Treads > --- UTILITY ---------- Small Storage Unit Hacking Suite > --- WEAPON ----------- Assault Rifle Assault Rifle > --- INVENTORY -------- Ion Engine Light Treads Improved Treads Improved Treads Utility Shielding Assault Rifle Grenade Launcher Mini Grenade Launcher [Rating: 12] Favorites ----------- Power Ion Engine Engine Ion Engine Propulsion Light Treads Treads Light Treads Utility Small Storage Unit Storage Small Storage Unit Processor Visual Processing Unit Hackware Hacking Suite Weapon Assault Rifle Energy Gun Small Laser Ballistic Gun Assault Rifle Launcher Grenade Launcher Build | -11 -10 -10 ------- Run | Yrd Mat Min Slots Evolved . | . . . Power . | . . . Propulsion . | . . . Utility . | . . . Weapon . | . . . Parts Attached 14 | 7 7 . Power 2 | 1 1 . Engine 2 | 1 1 . Core . | . . . Reactor . | . . . Propulsion 4 | 2 2 . Treads 4 | 2 2 . Leg . | . . . Wheel . | . . . Hover . | . . . Flight . | . . . Utility 3 | 1 2 . Device . | . . . Storage 1 | 1 . . Processor 1 | . 1 . Hackware 1 | . 1 . Protection . | . . . Artifact . | . . . Weapon 5 | 3 2 . Energy Gun 1 | 1 . . Energy Cannon . | . . . Ballistic Gun 3 | 2 1 . Ballistic Cannon . | . . . Launcher 1 | . 1 . Special Weapon . | . . . Impact Weapon . | . . . Slashing Weapon . | . . . Piercing Weapon . | . . . Special Melee Weapon . | . . . Unidentified Prototypes . | . . . Parts Lost . | . . . Power . | . . . Propulsion . | . . . Utility . | . . . Weapon . | . . . Highest Loss Streak . | . . . To Critical Strikes . | . . . Average Backups 4 | 2 4 8 Power 1 | 1 1 1 Propulsion 1 | . 1 3 Utility . | . . 1 Weapon 1 | . 1 2 Tool/Special . | . . . Unused Backups 7 | . . 7 Power 1 | . . 1 Propulsion 3 | . . 3 Utility 1 | . . 1 Weapon 1 | . . 1 Tool/Special 1 | . . 1 Average Slot Usage (%) 97 | . 97 100 Engine 14 | . 14 14 Treads 27 | . 27 28 Storage 14 | . 14 14 Processor 1 | . 2 . Hackware 10 | . 9 14 Ballistic Gun 24 | . 27 15 Launcher 3 | . . 12 Peak Build Rating 12 | 6 12 12 Average Rating 9 | 3 9 12 On Entrance 6 | . 6 12 Avg Prop Armor Cover (%) . | . . . Naked Turns . | . . . Heaviest Build 15 | 14 15 15 Greatest Support 46 | 40 46 46 Greatest Overweight (x) 4 | . 4 . Average Overweight (x) . | . . . Largest Inventory Capacity 8 | 8 8 8 Average Capacity 7 | 6 8 8 Most Carried 8 | 5 8 8 Average Carried 4 | 2 4 8 Final Capacity 8 | 8 8 8 Final Carried 8 | 1 8 8 Class Distribution -------------------- 100% | Mutant Dominant Class ---------------- Mutant | -10/Materials Mutant | -10/Mines Resources | -11 -10 -10 ----------- Run | Yrd Mat Min Matter Collected 789 | 192 480 117 Remotely . | . . . Salvage Created 619 | . 597 22 Parts 54 | . 51 3 Haulers Intercepted 2 | . 2 . Recyclers Shooed 2 | . 2 . Parts Field Recycled . | . . . Retrieved Matter . | . . . Parts Self-Destructed . | . . . Prevented . | . . . Parts Restored . | . . . Kills | -11 -10 -10 ------- Run | Yrd Mat Min Combat Hostiles Destroyed 20 | . 15 5 Guns 13 | . 12 1 AOE 7 | . 3 4 Classes Destroyed 8 | . 7 1 Worker 1 | . 1 . Hauler 2 | . 2 . Recycler 1 | . 1 . Operator 3 | . 3 . Watcher 3 | . 3 . Swarmer 12 | . 9 3 Grunt 6 | . 6 . Assembled 2 | . . 2 Best Kill Streak 5 | . 5 3 Combat Bots Only 3 | . 3 3 Max Kills in Single Turn 2 | . 2 2 Gunslinging . | . . . Exploded 2 | . 2 2 Melee . | . . . Uniques/NPCs Destroyed . | . . . Combat | -11 -10 -10 -------- Run | Yrd Mat Min Hostile Shots Fired 108 | . 87 21 Missed 31 | . 22 9 Hits 77 | . 65 12 Projectile 77 | . 65 12 Critical Strikes 2 | . 2 . Damage Taken 935 | . 767 168 Core 254 | . 194 60 Absorbed by Shields . | . . . Regen/Repaired (Parts) 182 | . 182 . Core Remaining (%) 100 | 100 . . Volleys Fired 80 | . 74 6 Largest 2 | . 2 2 Hottest 50 | . 40 50 Shots Fired 149 | . 141 8 Gun 138 | . 134 4 Cannon . | . . . Launcher 11 | . 7 4 Special . | . . . Kinetic 138 | . 134 4 Thermal . | . . . Explosive 11 | . 7 4 Electromagnetic . | . . . Robot Hit Streak 12 | . 12 3 Robot Miss Streak 3 | . 3 3 Penetration Max . | . . . Secondary Targets 1 | . 1 . Max Gunslinging Chain 1 | . 1 . Shots Hit Robots 89 | . 87 2 Core Hits 54 | . 49 5 Critical Kills . | . . . Critical Parts Destroyed 1 | . 1 . Critical Strikes 1 | . 1 . Destroy 1 | . 1 . Melee Attacks . | . . . Impact . | . . . Slashing . | . . . Piercing . | . . . Sneak Attacks . | . . . Combat Hostiles . | . . . Follow-up Attacks . | . . . Damage Inflicted 1742 | . 1489 253 Guns 1112 | . 1102 10 Cannons . | . . . Explosions 616 | . 373 243 Melee . | . . . Ramming 14 | . 14 . Kinetic 1112 | . 1102 10 Thermal 34 | . . 34 Explosive 582 | . 373 209 Electromagnetic . | . . . Impact . | . . . Slashing . | . . . Piercing . | . . . Highest Corruption 3 | . 3 3 Average Corruption 2 | . 1 3 Corruption Purged . | . . . Corruption Blocked . | . . . Effects 14 | . 8 6 Message Errors 2 | . 2 . Matter Fused 2 | . 2 . Heat Flow Errors 1 | . . 1 Energy Discharges 2 | . 1 1 Data Loss (minor) 3 | . 1 2 Data Loss (major) 2 | . . 2 Misfires 1 | . 1 . Weapon Failures 1 | . 1 . Overload Shots . | . . . Overflow Damage 41 | . . 41 Projectiles . | . . . Explosions 41 | . . 41 Melee . | . . . Knockbacks . | . . . Impact . | . . . Kinetic . | . . . Secondary . | . . . Self-Inflicted Damage 39 | . 8 31 Shots 2 | . 1 1 Rammed 7 | . 7 . Targets Rammed 7 | . 7 . Kicked . | . . . Crushed . | . . . Highest Temperature 82 | . 20 82 Average Temperature 19 | . 7 43 Received Heat Transfer 264 | . 264 . Siege Activations . | . . . Martial Activations . | . . . Shielding Activations . | . . . Robots Disrupted . | . . . Combat Hostiles . | . . . Robots Corrupted . | . . . Combat Hostiles . | . . . Parts Fried . | . . . Impact Corruptions . | . . . Robots Melted . | . . . Combat Hostiles . | . . . Parts Melted . | . . . Heat Transferred 50 | . . 50 Parts Sabotaged . | . . . Parts Stolen . | . . . Parts Stripped . | . . . Power Chain Reactions . | . . . Alert | -11 -10 -10 ------- Run | Yrd Mat Min Maximum Alert Level . | . . . Low Security (%) 100 | 100 100 100 Level 1 . | . . . Level 2 . | . . . Level 3 . | . . . Level 4 . | . . . Level 5 . | . . . High Security . | . . . Max Security . | . . . Peak Influence 182 | . 182 133 Initial 53 | . . 53 Average 91 | . 109 48 Influence Increases 738 | . 633 105 Destroy 0b10 Robot/C 360 | . 300 60 Destroy 0b10 Robot/NC 50 | . 50 . Destroy Leader 100 | . 90 10 Successful Hack 12 | . 12 . Disable Machine 30 | . 15 15 Destroy Structure 36 | . 16 20 Lose Combat Pursuer 150 | . 150 . Influence Decreases 736 | . 496 240 Entered New Map 84 | . . 84 Time Decay 652 | . 496 156 Squads Dispatched 5 | . 5 . Investigation 2 | . 2 . Extermination . | . . . Reinforcement 3 | . 3 . Assault . | . . . Garrison . | . . . Intercept . | . . . Searches Triggered . | . . . Construction Impeded . | . . . Haulers Reinforced . | . . . Active Scanning Responses . | . . . Cargo Convoy Interrupts . | . . . Stealth | -11 -10 -10 --------- Run | Yrd Mat Min Distress Signals 2 | . 2 . Communications Jammed . | . . . Distress Signals . | . . . Times Spotted 51 | . 44 7 Peak Tracking Total 4 | . 4 3 Tactical Retreats 11 | . 10 1 Traps | -11 -10 -10 ------- Run | Yrd Mat Min Traps Triggered 3 | . 3 . Indirectly . | . . . Trap Hack Attempts . | . . . Triggered . | . . . Disarmed . | . . . Reprogrammed . | . . . Reused . | . . . Traps Extracted . | . . . Installed . | . . . Triggered . | . . . Machines | -11 -10 -10 ---------- Run | Yrd Mat Min Machines Disabled 2 | . 1 1 Max in Single Turn 1 | . 1 1 Machines Repaired . | . . . Machines Dismantled . | . . . Machines Sabotaged . | . . . Overloaded Fab Kills . | . . . Hacking | -11 -10 -10 --------- Run | Yrd Mat Min Machines Accessed 5 | . 5 . Terminals 4 | . 4 . Fabricators . | . . . Repair Stations 1 | . 1 . Recycling Units . | . . . Scanalyzers . | . . . Garrison Access . | . . . Total Hacks 12 | . 12 . Successful 8 | . 8 . Failed 4 | . 4 . Catastrophic 2 | . 2 . Database Lockouts . | . . . Manual 6 | . 6 . Terminals 6 | . 6 . Fabricators . | . . . Repair Stations 6 | . 6 . Recycling Units . | . . . Scanalyzers . | . . . Garrison Access . | . . . Terminal Hacks 2 | . 2 . Terminal Index 1 | . 1 . Recall Investigation 1 | . 1 . Fabricator Hacks . | . . . Repair Station Hacks 5 | . 5 . Scan Component 3 | . 3 . Repair 2 | . 2 . Recycling Unit Hacks . | . . . Scanalyzer . | . . . Garrison Access Hacks . | . . . Unauthorized Hacks 1 | . 1 . Terminals 1 | . 1 . Operators 1 | . 1 . Fabricators . | . . . Repair Stations . | . . . Recycling Units . | . . . Scanalyzers . | . . . Garrison Access . | . . . Data Cores Recovered . | . . . Used . | . . . Hacking Detections 3 | . 3 . Full Trace Events 2 | . 2 . Feedback Events 1 | . 1 . Corruption 1 | . 1 . Feedback Blocked . | . . . Robot Schematics Acquired . | . . . Robots Built . | . . . Authchips . | . . . Time . | . . . Total Robot Build Rating . | . . . Part Schematics Acquired . | . . . Parts Built . | . . . Authchips . | . . . Time . | . . . Total Part Build Rating . | . . . Part Studies Acquired . | . . . Parts Repaired 2 | . 2 . Time 62 | . 62 . Parts Recycled . | . . . Recycled Matter . | . . . Retrieved Matter . | . . . Retrieved Components . | . . . Parts Scanalyzed . | . . . Part Schematics Acquired . | . . . Parts Damaged . | . . . Bothacking | -11 -10 -10 ------------ Run | Yrd Mat Min Used RIF Installer . | . . . Robots Hacked . | . . . Non-combat . | . . . Combat . | . . . Robot Hacks Applied . | . . . Relay Couplers Released . | . . . Fabnet Peak Effective % . | . . . Robots Rewired . | . . . Allies Hacked . | . . . Hacks Repelled . | . . . Allies | -11 -10 -10 -------- Run | Yrd Mat Min Total Allies . | . . . Largest Group . | . . . Highest-Rated Group . | . . . Highest-Rated Ally . | . . . Total Orders . | . . . Ally Attacks . | . . . Total Damage . | . . . Kills . | . . . Allies Corrupted . | . . . Allies Melted . | . . . Intel | -11 -10 -10 ------- Run | Yrd Mat Min Active Infowar (turns) 244 | . 244 . Optics 244 | . 244 . Robot Analysis Total . | . . . Derelict Logs Recovered . | . . . Drone Launches . | . . . Drone Recoveries . | . . . Exploration | -11 -10 -10 ------------- Run | Yrd Mat Min Turns Passed 1971 | 95 1466 410 Spaces Moved 918 | 47 641 230 Core 15 | 12 3 . Treads 903 | 35 638 230 Legs . | . . . Wheels . | . . . Hover . | . . . Flight . | . . . Fastest Speed 50 | 50 160 160 Average Speed 158 | 131 160 160 Slowest Speed 250 | 160 250 160 Overloaded Moves . | . . . Propulsion Burnouts . | . . . Robots Hopped . | . . . Potential Cave-ins . | . . . Cave-ins Triggered . | . . . Exploration Rate (%) 46 | 4 77 58 Regions Visited 2 Branch Regions 1 Pre-discovered Areas . | . . . Known Exits Taken . | . . . Unknown Exits Taken 2 | 1 1 . Scrap Searched 1 | . . 1 Spaces Dug . | . . . Terrain Destroyed 40 | . 16 24 Melee . | . . . Projectile . | . . . AOE 40 | . 16 24 Terrain Rammed . | . . . Walls Destroyed . | . . . Machines Disabled . | . . . Actions | -11 -10 -10 --------- Run | Yrd Mat Min Total 1280 | 79 934 267 Wait 234 | 20 186 28 Move 916 | 46 640 230 Hop . | . . . Pick Up 20 | 5 14 1 Fast Attach 4 | 3 1 . Attach 8 | 3 5 . Detach . | . . . Swap 5 | 1 3 1 Drop 6 | 1 4 1 Fire 80 | . 74 6 Melee . | . . . Ram . | . . . Kick . | . . . Crush 7 | . 7 . Escape Stasis . | . . . Rewire . | . . . Trap . | . . . Miscellaneous . | . . . Route ------- -11/Scrapyard -10/Materials (discovered 3 exits: [*Mat x2] / *Min) -10/Mines History --------- Turn | Location | Event 9 | -11/Scrapyard | Discovered new exit (range 16) 96 | -11/Scrapyard | Entered Materials 315 | -10/Materials | Build established: Mutant 324 | -10/Materials | Core integrity fell below 50% 351 | -10/Materials | Discovered new exit (range 14) 373 | -10/Materials | Discovered new exit (range 16) 536 | -10/Materials | Repaired Broken Lgt. Treads 566 | -10/Materials | Repaired Assault Rifle 737 | -10/Materials | Discovered new exit (range 14) 1562 | -10/Materials | Entered Mines 1799 | -10/Mines | Assembled infested the area 1804 | -10/Mines | Assisted by a Guerilla fighting off Assembled 1894 | -10/Mines | Core integrity fell below 20% 1972 | -10/Mines | Destroyed self with Grenade Launcher Last Messages --------------- Searching scrap... Found Lrg. Storage Unit. Found Mining Claw. Found Hcp. Storage Unit. Found 48 Matter. Acquired 48 matter. The unstable cave ceiling collapses. as-46623 destroyed. as-49226 destroyed. R-06 Scavenger collects Wheel. The unstable cave ceiling collapses. R-06 Scavenger collects Cmb. Airjet. R-06 Scavenger destroyed. The unstable cave ceiling collapses. Dropped Lgt. Treads. Acquired Cmb. Airjet. Acquired 65 matter. System corrupted: Substantial component data lost. Acquired 4 matter. Map ----- +----------------------------------------------------+ | ??????# #????????????????#####?###???????? | | ??????# ##???????????????????????????????? | | ??????## ### ###?????????????????????????????? | | ???????####?## ##????????????????????????????? | | ????????????## ##???????????????????????????? | | ???????????## #???????????????????????????? | | ??????????## ##??????????????????????????? | | ??????????# #??????????????????????????? | | ?????????# ## ## ##??????????????????????????? | | ?????????# ### #? #???????????????????????????? | | ??######### #??# #??#???????????????????????????? | | ?## #####???# ## ##??????????????????????????? | | ?# #??????# #??????????????????????????? | | ?# #??????# ### #??????????????????????????? | | ??# ######## #?# ???????????????????????????? | | ???# #?# ???????????????????????????? | | ??## """ #?# ##?????????????????????????? | | ??# """ #######?#% ?????????????????????????? | | ?## """ ##???#####a;#??#??????????????????????? | | ?# ##??### ### ????? ???????????????? | | ?# #####?###; #;##???? ????????????????? | | ?## #????##"# #??? #????????????????? | | ??## #???## #?? #????????????????? | | ???# #???# # ### #????????????????? | | ???# #???# ## = #????????????????? | | ???# ##### ## %!@ $ #????????????????? | | ???# !/ ## = # ####????????????????? | | ???# ! ### #=== # ##??????????????????? | | ???### ##### ### # #??????????????????? | | ????## #???# ### %# #??????????????????? | | ??### ##??## ## ####### ????????????? | | ?## ##??## % % #??????????? | | ## #???# " #??????????? | | # #???# ##########???????????? | | #???# ###????????????????????? | | ##???# ## ###??????????????????????? | | ####????## #######????????????????????????? | | ##????????#####??????????????????????????????? | | ##????????????????????????????????????????????? | | ####?????????????????????????????????????????????? | | ?????????????????????????????????????????????????? | | ?????????????????????????????????????????????????? | | ?????????????????????????????????????????????????? | | ?????????????????????????????????????????????????? | | ?????????????????????????????????????????????????? | | | | | | | | | | | +----------------------------------------------------+ Best States ------------- Heat Dissipation 25 Energy Generation 10 Energy Capacity 250 Matter Stores 231 Matter Capacity 300 Sight Range 18 Terrain Scan Density 10 Evasion (%) 50 Recoil Reduction 2 Offensive Hacking 10 Item Schematics ----------------- None Robot Schematics ------------------ None Fabricated ------------ Nothing Repaired ---------- Lgt. Treads | 33% | -10/Materials | Broken Assault Rifle | 11% | -10/Materials Studied --------- None Alien Tech Used ----------------- None Achievements -------------- None Challenges ------------ None Game ------ Seed DecoyPrecisionLog Manual? 0 Play Time 00:17:14 Cumulative 11.7 hours Start 2026.01.21 @ 21:27:25 End 2026.01.21 @ 21:41:58 Sessions 1 Manual Loads 0 Difficulty Rogue Special Mode None Game No. 21 Rogue 21 Adventurer 0 Explorer 0 Win Type - Total 0 Types 0/0/0/0/0/0/0/0/0/0 Lore% 12 Gallery% 16 Achievement% 16 Wizard Run 0 Options --------- Layout 2 ASCII 0 Keyboard 0 Movement Mouse Keybinds 0 Fullscreen 1 Font 24/Smallcaps Map View 50x44 Zoom Use 0% Tactical HUD 0 Map Filters NONE Filters NONE Steam 1 RUN: a629428d-f9e8-4212-8e12-a611ccc9f2b6